bitfinex-derivatives/quotes_ETHF0:USTF0_20241024
["timestamp","ask_amount","ask_price","bid_price","bid_amount"]
[1729784729194,0.39499,2533.4,2533.3,0.39499]
[1729784730684,0.39497,2533.5,2533.4,0.39497]
[1729784731897,0.39495,2533.6,2533.5,0.39495]
[1729784732289,0.39494,2533.7,2533.6,0.39494]
[1729784732504,0.39492,2533.8,2533.7,0.39492]
[1729784732686,0.39494,2533.7,2533.6,0.39494]
[1729784732891,3.56975438,2534.0,2533.3,1.83418]
[1729784733096,3.08275443,2533.9,2533.3,0.8467]
[1729784733292,0.39497,2533.5,2533.4,0.39497]
[1729784733687,0.39496,2533.6,2533.5,0.39496]
[1729784734697,4.07002443,2533.9,2533.3,1.24169]
[1729784734698,0.39498,2533.4,2533.3,1.24169]
[1729784735096,0.39498,2533.4,2533.3,0.8467]
[1729784735397,1.3974,2533.8,2533.3,4.7939]
[1729784735606,0.39496,2533.6,2533.5,0.39496]
[1729784736699,0.39494,2533.7,2533.6,0.39493]
[1729784737198,5.79031438,2534.0,2533.3,7.13725443]
[1729784737404,0.39494,2533.7,2533.6,0.39493]
[1729784737702,0.39493,2533.8,2533.7,0.39492]
[1729784738600,6.77753438,2534.0,2533.5,0.4324]
[1729784738805,0.39493,2533.8,2533.7,0.39492]
[1729784739003,0.39494,2533.7,2533.6,0.39494]
[1729784739194,6.77754438,2534.0,2533.5,0.4324]
[1729784739502,0.39495,2533.6,2533.5,0.82735]
[1729784739893,0.39494,2533.7,2533.6,0.39494]
[1729784741006,6.77754438,2534.0,2533.5,0.4324]
[1729784741203,0.39492,2533.8,2533.7,0.39492]
[1729784741903,0.39491,2533.9,2533.8,0.3949]
[1729784742992,0.39493,2533.8,2533.7,0.39492]
[1729784743194,3.08275443,2533.9,2533.3,4.0545]
[1729784743402,3.2078,2534.0,2533.4,0.12350619]
[1729784743596,4.06994443,2534.1,2533.7,0.39492]
[1729784743597,0.39493,2533.8,2533.7,0.39492]
[1729784745106,5.79031438,2534.4,2533.8,0.9873]
[1729784745402,5.79031438,2534.4,2534.1,0.39486]
[1729784745403,0.39486,2534.2,2534.1,0.39486]
[1729784746009,0.39483,2534.4,2534.3,0.39482]
[1729784746202,0.39482,2534.4,2534.3,0.39482]
[1729784746405,0.39482,2534.5,2534.4,0.39481]
[1729784747902,0.39485,2534.3,2534.2,0.39485]
[1729784748099,3.08275443,2534.5,2533.9,4.0645]
[1729784748304,0.39486,2534.2,2534.1,0.39485]
[1729784748711,0.39488,2534.1,2534.0,0.39487]
[1729784748909,0.98707,2534.4,2533.9,4.4594]
[1729784748910,0.39488,2534.0,2533.9,4.4594]
[1729784749103,0.39488,2534.0,2533.9,1.2516]
[1729784749807,0.4415,2534.2,2533.9,0.8567]
[1729784750108,0.39488,2534.0,2533.9,0.8567]
[1729784750509,0.39488,2534.0,2533.9,1.2516]
[1729784750701,0.39488,2534.0,2533.9,0.8567]
[1729784751205,0.39488,2534.0,2533.9,1.2516]
[1729784751405,0.39488,2534.0,2533.9,0.8567]
[1729784751704,0.39488,2534.0,2533.9,1.2516]
[1729784751903,4.60501,2534.3,2533.9,0.8567]
[1729784752108,0.39488,2534.1,2534.0,0.39487]
[1729784753609,0.39486,2534.2,2534.1,0.39485]
[1729784753901,2.58251438,2534.4,2534.1,3.08275443]
[1729784754106,2.58251438,2534.8,2534.3,3.2078]
[1729784754511,0.39482,2534.5,2534.4,0.39481]
[1729784755008,5.66526881,2534.8,2534.1,0.98717]
[1729784755207,0.39482,2534.5,2534.4,0.39481]
[1729784755404,0.39482,2534.5,2534.0,6.29055443]
[1729784755604,0.39487,2534.2,2534.1,0.51833103]
[1729784755814,0.39487,2534.2,2534.1,0.39486]
[1729784756012,0.39485,2534.3,2534.2,0.39484]
[1729784756708,0.39487,2534.1,2534.0,3.2078]
[1729784756911,0.39487,2534.1,2534.0,0.39488]
[1729784757608,0.39486,2534.2,2534.1,0.39485]
[1729784757916,0.8146,2534.4,2534.0,0.4293]
[1729784758117,0.39485,2534.3,2534.2,0.39484]
[1729784758611,0.39484,2534.4,2534.3,0.39483]
[1729784759811,2.58251438,2534.5,2534.1,0.39486]
[1729784759812,0.39487,2534.2,2534.1,0.39486]
[1729784760816,0.39485,2534.3,2534.2,0.39484]
[1729784761213,3.56954438,2534.5,2534.0,0.4293]
[1729784761512,0.39485,2534.3,2534.2,0.39484]
[1729784762018,0.39487,2534.2,2534.1,0.39486]
[1729784763413,0.98708,2534.4,2534.0,0.4293]
[1729784763720,0.39487,2534.1,2534.0,0.82417]
[1729784764319,0.39487,2534.2,2534.1,0.39486]
[1729784767420,0.98718,2534.1,2533.5,1.714]
[1729784767720,0.39492,2533.9,2533.8,0.3949]
[1729784768111,0.39492,2533.9,2533.6,0.4108]
[1729784768112,3.2078,2534.0,2533.6,0.4108]
[1729784768313,0.39493,2533.8,2533.7,0.39492]
[1729784770211,3.2078,2534.0,2533.6,0.4108]
[1729784770212,0.39493,2533.7,2533.6,0.4108]
[1729784770411,0.98734,2533.7,2533.0,3.2078]
[1729784770611,0.39502,2533.2,2533.1,1.67022]
[1729784771011,0.39502,2533.2,2533.1,1.2752]
[1729784771219,4.19526,2533.4,2532.8,11.588]
[1729784771518,0.39505,2533.0,2532.9,0.39504]
[1729784771915,6.77777438,2533.4,2532.8,12.4639]
[1729784772111,0.39502,2533.2,2533.1,0.39501]
[1729784772520,5.79031438,2533.4,2532.8,12.4639]
[1729784772823,0.39503,2533.1,2533.0,0.39503]
[1729784773017,6.77778438,2533.4,2533.1,0.39502]
[1729784773018,0.39502,2533.2,2533.1,0.39502]
[1729784773223,3.2078,2533.4,2533.3,0.39499]
[1729784773523,5.79031438,2533.7,2533.2,1.82862]
[1729784773722,6.18525438,2533.7,2533.6,0.39495]
[1729784773923,3.2078,2533.7,2533.6,0.39495]
[1729784774424,0.39493,2533.8,2533.7,0.39493]
[1729784774618,2.58251438,2533.9,2533.6,0.39494]
[1729784774619,0.39495,2533.7,2533.6,0.39494]
[1729784775621,0.39497,2533.5,2533.4,0.39496]
[1729784775823,0.39498,2533.4,2533.3,0.4391]
[1729784776016,0.39498,2533.4,2533.3,0.83409]
[1729784776221,0.39498,2533.4,2533.3,0.4391]
[1729784776922,0.39499,2533.3,2533.2,0.4368]
[1729784777315,3.08275443,2533.4,2532.8,0.4302]
[1729784777623,0.39506,2532.9,2532.8,1.23527]
[1729784777819,0.39506,2532.9,2532.8,0.8402]
[1729784778015,0.39506,2532.9,2532.8,0.41]
[1729784778220,0.39506,2532.9,2532.8,0.80507]
[1729784780920,0.39506,2532.9,2532.8,0.41]
[1729784781918,0.39509,2532.7,2532.6,0.422]
[1729784782117,0.3951,2532.6,2532.5,0.4135]
[1729784782323,0.39515,2532.3,2532.2,1.25316]
[1729784782541,0.39515,2532.3,2532.2,1.66666]
[1729784782927,0.39513,2532.5,2532.4,0.39513]
[1729784783324,3.6173,2532.8,2532.3,0.98788]
[1729784783523,0.3951,2532.7,2532.6,0.39509]
[1729784784120,4.07037443,2533.0,2532.2,8.54997443]
[1729784784322,0.39512,2532.6,2532.5,0.39511]
[1729784784522,4.48007443,2533.0,2532.2,8.54997443]
[1729784784727,0.39509,2532.7,2532.6,0.39509]
[1729784784928,0.3951,2532.7,2532.6,0.3951]
[1729784785731,0.39506,2532.9,2532.6,0.3951]
[1729784785923,0.3951,2532.7,2532.6,0.3951]
[1729784787428,3.6109,2533.1,2532.5,3.08275443]
[1729784787625,0.39505,2533.0,2532.9,0.39505]
[1729784788028,3.2078,2533.1,2532.7,0.8481]
[1729784788228,0.39507,2532.9,2532.8,0.39505]
[1729784788729,0.39507,2532.8,2532.7,1.24317]
[1729784789232,3.2078,2533.1,2532.7,0.8481]
[1729784789432,0.39507,2532.9,2532.8,0.39506]
[1729784789934,0.39507,2532.8,2532.7,0.8481]
[1729784790237,0.39512,2532.5,2532.4,0.81202]
[1729784790429,3.08275443,2532.8,2532.1,4.19575]
[1729784790430,0.39515,2532.3,2532.2,0.39516]
[1729784791028,0.98781,2532.5,2532.1,2.5092]
[1729784791228,0.39517,2532.2,2532.1,2.5092]
[1729784791424,0.39517,2532.2,2532.1,1.22938]
[1729784791830,0.39517,2532.2,2532.1,0.8342]
[1729784792033,0.39517,2532.2,2532.1,1.22938]
[1729784792236,0.39516,2532.3,2532.2,0.39515]
[1729784794038,3.2078,2532.5,2532.3,0.39513]
[1729784794039,0.39514,2532.4,2532.3,0.39513]
[1729784794244,0.39512,2532.5,2532.4,0.39513]
[1729784794439,0.39511,2532.6,2532.5,0.3951]
[1729784794949,0.3951,2532.7,2532.6,0.39509]
[1729784798341,3.08275443,2532.8,2532.4,3.2078]
[1729784798538,0.3951,2532.7,2532.6,0.39509]
[1729784798940,7.68458443,2533.0,2532.4,3.2078]
[1729784798941,6.69695443,2533.0,2532.4,3.2078]
[1729784799142,0.3951,2532.7,2532.6,0.39509]
[1729784799545,3.48915443,2533.0,2532.7,0.39507]
[1729784799546,0.39508,2532.8,2532.7,0.39507]
[1729784801546,0.39509,2532.7,2532.6,0.79749]
[1729784803540,4.07036443,2533.0,2532.6,0.4024]
[1729784803837,0.39509,2532.8,2532.7,0.39508]
[1729784806946,4.07036443,2533.0,2532.6,0.4024]
[1729784806947,3.08275443,2533.0,2532.6,0.4024]
[1729784807148,0.39507,2532.9,2532.8,0.39506]
[1729784807343,0.39509,2532.8,2532.7,0.39508]
[1729784807650,0.39509,2532.8,2532.7,0.83468]
[1729784810443,0.39506,2532.9,2532.8,0.39506]
[1729784811241,3.948,2532.9,2532.2,5.18358]
[1729784811442,0.3951,2532.7,2532.6,0.39509]
[1729784811643,0.39509,2532.7,2532.6,0.39509]
[1729784811945,8.87306881,2533.1,2532.9,0.39505]
[1729784811946,0.39506,2533.0,2532.9,0.39505]
[1729784812447,0.39507,2532.9,2532.8,0.39506]
[1729784812642,0.39507,2532.9,2532.8,0.4314]
[1729784812843,9.86063881,2533.1,2532.7,0.4315]
[1729784813145,0.3951,2532.6,2532.5,0.82651]
[1729784813447,0.3951,2532.6,2532.5,0.8629]
[1729784813640,0.3951,2532.6,2532.5,1.25802]
[1729784813842,0.3951,2532.6,2532.5,0.8629]
[1729784814241,0.39515,2532.4,2532.2,3.2078]
[1729784814447,1.42545,2532.7,2532.3,0.12356259]
[1729784814643,0.4377,2532.7,2532.2,3.6489]
[1729784814948,0.3951,2532.7,2532.6,0.39509]
[1729784815752,0.39509,2532.8,2532.7,0.39508]
[1729784816051,0.39509,2532.8,2532.7,0.83618]
[1729784817449,2.97758438,2532.9,2532.8,0.39506]
[1729784817657,0.39507,2532.9,2532.8,0.39506]
[1729784818147,2.58251438,2533.0,2532.9,0.39506]
[1729784818347,2.97755438,2533.0,2532.9,0.39506]
[1729784818548,2.58251438,2533.1,2532.7,1.42881]
[1729784818752,2.97755438,2533.1,2533.0,0.39504]
[1729784818951,0.39504,2533.1,2533.0,0.39504]
[1729784819251,2.97755438,2533.1,2533.0,0.39504]
[1729784819458,2.58251438,2533.2,2532.9,0.4227]
[1729784819664,0.39502,2533.2,2533.1,0.39502]
[1729784819949,2.97753438,2533.2,2533.1,0.39502]
[1729784820150,2.97753438,2533.2,2532.9,0.4227]
[1729784820352,0.39503,2533.1,2533.0,0.51855333]
[1729784820561,0.39503,2533.1,2533.0,0.39502]
[1729784820857,2.97753438,2533.2,2533.1,0.39502]
[1729784821249,2.97753438,2533.2,2533.1,0.51855283]
[1729784821444,2.97752438,2533.2,2533.1,0.51855275]
[1729784821647,0.39501,2533.2,2533.1,0.51855275]
[1729784821853,0.39501,2533.2,2533.1,0.12353272]
[1729784822056,2.58251438,2533.2,2533.0,0.39503]
[1729784822252,0.39502,2533.1,2533.0,0.39503]
[1729784822449,0.39502,2533.1,2533.0,0.51856719]
[1729784822651,10.00828881,2533.1,2533.0,0.12353719]
[1729784822857,0.39507,2532.8,2532.7,3.6489]
[1729784823053,0.39507,2532.8,2532.7,4.16754005]
[1729784823358,2.98368219,2532.8,2532.7,3.33135005]
[1729784823660,3.42928219,2532.8,2532.7,3.33135005]
[1729784823958,0.39509,2532.7,2532.6,0.39509]
[1729784824158,0.39509,2532.7,2532.6,0.74133225]
[1729784824363,0.39509,2532.7,2532.6,0.51865525]
[1729784824763,0.39509,2532.7,2532.6,1.33412171]
[1729784824956,2.98431761,2532.8,2532.6,0.74133734]
[1729784825151,2.98431761,2532.8,2532.7,0.51864525]
[1729784827053,2.98431761,2532.8,2532.7,0.12355124]
[1729784827054,2.58923761,2532.8,2532.7,0.12355124]
[1729784827258,6.53723761,2532.8,2532.5,0.39512]
[1729784827567,0.39513,2532.5,2532.4,0.39513]
[1729784827868,0.39513,2532.5,2532.4,1.3342111]
[1729784828966,2.98432761,2532.7,2532.4,0.9390811]
[1729784829162,2.98432761,2532.7,2532.6,0.3951]
[1729784829363,2.98432761,2532.7,2532.6,0.5186633]
[1729784829364,0.39509,2532.7,2532.6,0.5186633]
[1729784829568,2.98431761,2532.8,2532.7,0.39509]
[1729784829766,2.98431761,2532.8,2532.7,0.5186533]
[1729784830474,2.98431761,2532.8,2532.7,0.39509]
[1729784830666,2.98431761,2532.8,2532.7,0.51864176]
[1729784831165,2.58923761,2532.9,2532.7,0.12355176]
[1729784831367,2.58923761,2533.0,2532.9,0.39506]
[1729784831569,2.58923761,2533.1,2533.0,0.39504]
[1729784831875,2.98430818,2533.1,2533.0,0.51859176]
[1729784832473,2.98430818,2533.1,2533.0,0.12355176]
[1729784833369,2.98430818,2533.1,2533.0,0.51859176]
[1729784833571,2.98430818,2533.1,2533.0,0.12355176]
[1729784833867,2.98430818,2533.1,2532.9,0.39505]
[1729784833868,2.58928818,2533.1,2532.9,0.39505]
[1729784834065,0.39504,2533.0,2532.9,0.39505]
[1729784834375,2.98432818,2533.1,2533.0,0.39504]
[1729784834561,2.98432818,2533.1,2533.0,0.51858016]
[1729784835370,2.98432818,2533.1,2533.0,0.12354016]
[1729784835371,10.01508261,2533.1,2533.0,0.12354016]
[1729784835671,10.01508261,2533.1,2532.5,0.4188]
[1729784835672,0.3951,2532.6,2532.5,0.4188]
[1729784835868,0.3951,2532.6,2532.5,0.93748257]
[1729784836869,0.3951,2532.6,2532.5,4.76307541]
[1729784837060,0.3951,2532.6,2532.5,4.96076316]
[1729784837762,0.3951,2532.6,2532.5,4.96074355]
[1729784838377,0.3951,2532.6,2532.5,1.75294355]
[1729784838562,0.3951,2532.6,2532.5,0.54236257]
[1729784838768,0.3951,2532.6,2532.5,1.75297579]
[1729784839168,2.98419785,2532.6,2532.5,0.93905579]
[1729784839475,2.98419785,2532.6,2532.5,0.93905154]
[1729784840071,0.3951,2532.6,2532.5,0.32125842]
[1729784840273,0.3951,2532.6,2532.5,0.93905161]
[1729784840274,2.98419785,2532.6,2532.5,0.93905161]
[1729784841177,2.98419785,2532.6,2532.5,0.93906182]
[1729784841770,0.3951,2532.6,2532.5,0.12356257]
[1729784841971,7.42665443,2532.6,2532.5,0.12356257]
[1729784842169,10.52567169,2532.6,2532.5,0.12356257]
[1729784842371,10.52567169,2532.6,2532.1,3.60298]
[1729784842372,0.39517,2532.2,2532.1,3.60298]
[1729784842565,0.39517,2532.2,2532.1,4.54216303]
[1729784843166,0.39517,2532.2,2532.1,5.53074948]
[1729784843369,0.39517,2532.2,2532.1,4.54216303]
[1729784843876,2.59048617,2532.4,2532.1,4.14698303]
[1729784844075,0.39517,2532.2,2532.1,3.60296]
[1729784844275,0.39517,2532.2,2532.1,4.5421131]
[1729784845479,3.57832617,2532.4,2532.2,0.39515]
[1729784845480,0.39517,2532.3,2532.2,0.39515]
[1729784845682,0.39517,2532.3,2532.2,0.93914716]
[1729784845981,0.39517,2532.3,2532.2,1.33431716]
[1729784846579,0.39517,2532.3,2532.2,0.93914716]
[1729784846875,2.98565617,2532.3,2532.2,0.12357049]
[1729784847076,0.39523,2531.8,2531.7,0.4279]
[1729784847286,0.98816,2531.6,2531.1,1.02681829]
[1729784847472,3.08275443,2531.2,2530.9,0.39536]
[1729784847673,2.98278557,2531.3,2531.0,0.12363318]
[1729784847869,5.67022,2531.4,2531.1,0.51895894]
[1729784848075,0.39532,2531.2,2531.1,0.39533]
[1729784848270,0.39532,2531.2,2531.0,0.39535]
[1729784848481,3.08275443,2531.4,2530.9,0.4139]
[1729784848679,0.39532,2531.3,2531.1,0.39533]
[1729784849074,3.08275443,2531.4,2531.1,0.39533]
[1729784849075,0.39532,2531.2,2531.1,0.39533]
[1729784849372,0.39534,2531.1,2530.9,4.01706]
[1729784849571,0.39534,2531.1,2531.0,0.39535]
[1729784849780,0.39533,2531.2,2531.0,0.39535]
[1729784850080,6.29055443,2531.4,2531.0,0.39535]
[1729784850278,0.39534,2531.1,2531.0,0.39535]
[1729784850581,0.39533,2531.2,2530.9,3.6217]
[1729784850878,0.39531,2531.3,2531.2,0.39532]
[1729784851175,3.08275443,2531.6,2531.2,0.39532]
[1729784851377,0.39528,2531.5,2531.4,0.39529]
[1729784851773,3.08275443,2531.6,2531.3,0.7975]
[1729784851774,0.39529,2531.4,2531.3,0.7975]
[1729784852075,3.08275443,2531.6,2531.3,0.7975]
[1729784852275,0.39529,2531.5,2531.3,0.7975]
[1729784852577,2.5827664,2532.0,2531.3,0.4022]
[1729784852781,0.39522,2531.9,2531.8,0.39523]
[1729784853076,6.29055443,2532.1,2531.8,0.39522]
[1729784853276,6.29055443,2532.1,2531.5,3.2078]
[1729784853277,0.39521,2532.0,2531.5,3.2078]
[1729784853481,0.39521,2532.0,2531.9,0.39521]
[1729784853672,3.08275443,2532.1,2531.5,3.2078]
[1729784853874,0.39522,2531.9,2531.8,0.39523]
[1729784854182,0.39522,2531.9,2531.7,0.39523]
[1729784854378,3.47796443,2531.9,2531.8,0.4248]
[1729784854571,0.39527,2531.5,2531.4,0.8401]
[1729784854768,0.39527,2531.5,2531.1,0.4248]
[1729784854769,0.39532,2531.2,2531.1,0.4248]
[1729784854970,0.39532,2531.2,2531.1,0.843]
[1729784855468,3.47806443,2531.3,2531.1,0.843]
[1729784855674,3.47806443,2531.3,2531.1,1.23832]
[1729784855874,3.47807443,2531.3,2531.2,0.39532]
[1729784856179,3.08275443,2531.3,2531.1,0.843]
[1729784856374,3.47806443,2531.3,2531.1,1.23832]
[1729784856575,3.47806443,2531.3,2531.2,0.39532]
[1729784857072,0.39532,2531.2,2531.1,1.23833]
[1729784857779,0.39532,2531.2,2531.1,0.843]
[1729784858878,0.39532,2531.2,2531.1,1.23834]
[1729784859074,0.39531,2531.3,2531.2,0.39532]
[1729784859481,3.08275443,2531.5,2531.1,0.843]
[1729784859781,0.39531,2531.3,2531.2,0.39531]
[1729784859978,0.39531,2531.3,2531.1,0.843]
[1729784860179,0.39531,2531.3,2531.2,0.39532]
[1729784860678,0.39532,2531.3,2531.2,0.39532]
[1729784860885,0.39532,2531.2,2531.1,1.23833]
[1729784861079,3.08275443,2531.5,2531.1,1.23833]
[1729784861280,3.08275443,2531.5,2531.1,0.843]
[1729784861487,0.39531,2531.3,2531.2,0.39532]
[1729784861779,0.39532,2531.2,2531.1,0.843]
[1729784862087,0.39532,2531.2,2531.1,1.23834]
[1729784862485,0.39532,2531.3,2531.2,0.39532]
[1729784863080,3.08275443,2531.5,2531.1,0.843]
[1729784863276,0.39532,2531.2,2531.1,1.23833]
[1729784863481,0.39532,2531.2,2531.1,0.843]
[1729784863775,0.39532,2531.3,2531.1,0.843]
[1729784863981,0.39532,2531.3,2531.2,0.39532]
[1729784864177,0.39532,2531.2,2531.1,0.843]
[1729784864981,0.39532,2531.2,2531.1,0.4248]
[1729784865380,3.9504,2531.2,2531.0,3.2078]
[1729784865577,0.39534,2531.1,2531.0,3.2078]
[1729784866091,0.39535,2531.0,2530.9,0.82837]
[1729784866290,0.39535,2531.0,2530.9,0.433]
[1729784866479,7.03395443,2531.0,2530.2,3.2078]
[1729784866788,0.39546,2530.3,2530.2,3.6401]
[1729784866992,4.19636,2530.6,2529.8,4.0393]
[1729784867179,0.39552,2529.9,2529.8,4.0393]
[1729784867385,0.39552,2529.9,2529.8,4.43484]
[1729784867883,0.39552,2529.9,2529.8,4.0393]
[1729784868090,0.39552,2529.9,2529.8,0.4133]
[1729784868091,3.47827443,2529.9,2529.8,0.4133]
[1729784868286,3.47827443,2529.9,2529.7,0.61048594]
[1729784868287,0.39554,2529.8,2529.7,0.61048594]
[1729784868482,4.34834,2529.8,2529.7,0.61048594]
[1729784869485,0.39567,2529.0,2528.9,3.2078]
[1729784869690,0.39567,2529.0,2528.4,0.39575]
[1729784869691,0.39572,2528.7,2528.4,0.39575]
[1729784869991,0.39572,2528.7,2528.1,1.3098]
[1729784869992,0.39575,2528.5,2528.2,0.39578]
[1729784870194,0.39578,2528.3,2528.1,1.7056]
[1729784870383,1.97809,2529.4,2528.0,3.2078]
[1729784870384,0.39581,2528.1,2528.0,3.2078]
[1729784870687,3.08275443,2528.2,2527.6,1.786]
[1729784870688,0.39582,2528.0,2527.6,0.39587]
[1729784870991,3.08275443,2528.2,2527.5,0.4363]
[1729784871184,3.08275443,2528.2,2527.6,3.2078]
[1729784871491,3.08275443,2528.2,2527.5,0.4363]
[1729784871492,3.47857443,2528.0,2527.5,0.83219]
[1729784871793,3.08275443,2527.9,2527.6,0.39588]
[1729784871991,3.08275443,2527.9,2527.5,0.4363]
[1729784872188,3.08275443,2527.9,2527.6,0.39587]
[1729784872390,3.08275443,2527.9,2527.5,0.4363]
[1729784872786,3.08275443,2527.9,2527.5,0.8322]
[1729784873293,3.08275443,2527.9,2527.6,0.39588]
[1729784874293,6.29055443,2528.0,2527.8,0.39584]
[1729784874596,6.29055443,2528.0,2527.5,0.4363]
[1729784874597,6.29055443,2528.0,2527.7,0.39586]
[1729784874786,6.29055443,2528.0,2527.5,0.4363]
[1729784874986,3.08275443,2528.0,2527.7,0.39586]
[1729784875188,3.08275443,2528.0,2527.8,0.39585]
[1729784876387,3.08275443,2528.0,2527.9,0.39584]
[1729784876587,3.08275443,2528.2,2527.9,0.39584]
[1729784876795,3.08275443,2528.2,2527.6,3.2078]
[1729784876990,3.08275443,2528.2,2527.8,0.39584]
[1729784877290,3.08275443,2528.0,2527.8,0.39584]
[1729784878087,3.08275443,2528.0,2527.6,3.2078]
[1729784878298,3.2078,2528.3,2527.6,3.2078]
[1729784878507,3.08275443,2528.2,2528.0,0.39581]
[1729784878995,3.08275443,2528.2,2527.9,3.2078]
[1729784879188,3.08275443,2528.2,2528.1,0.39581]
[1729784879602,7.03795443,2528.2,2527.5,3.6441]
[1729784879898,3.08275443,2527.7,2527.5,3.6441]
[1729784880201,3.2078,2528.3,2527.8,0.39585]
[1729784880202,0.3958,2528.2,2527.8,0.39585]
[1729784880397,3.2078,2528.3,2527.5,3.6441]
[1729784880700,3.2078,2528.0,2527.5,0.4363]
[1729784880894,3.60363,2528.0,2527.6,0.39588]
[1729784881089,3.2078,2528.0,2527.5,0.4363]
[1729784881298,3.2078,2528.0,2527.8,0.39585]
[1729784881597,3.08275443,2527.9,2527.8,0.39585]
[1729784882499,3.08275443,2527.9,2527.2,3.2078]
[1729784882500,8.02838443,2527.9,2527.2,3.2078]
[1729784882808,3.08275443,2527.3,2527.2,0.39595]
[1729784883102,3.08275443,2527.5,2527.4,0.39592]
[1729784883303,3.08275443,2527.7,2527.0,0.98994]
[1729784883601,3.08275443,2527.7,2527.6,0.39588]
[1729784883806,3.08275443,2527.7,2527.5,0.39589]
[1729784883999,3.2078,2527.8,2527.7,0.39587]
[1729784884302,3.08275443,2527.9,2527.8,0.39585]
[1729784884490,3.08275443,2527.9,2527.7,0.39586]
[1729784884689,3.08275443,2527.9,2527.8,0.39585]
[1729784884902,3.08275443,2527.9,2527.3,1.39461]
[1729784884903,3.08275443,2527.9,2527.7,0.39585]
[1729784885096,3.08275443,2527.9,2527.4,0.39592]
[1729784885296,6.29055443,2528.1,2527.5,3.2078]
[1729784885492,6.29055443,2528.1,2527.9,0.39583]
[1729784885892,3.47853443,2528.3,2528.1,0.3958]
[1729784886097,3.08275443,2528.3,2528.1,0.3958]
[1729784886600,3.08275443,2528.3,2528.2,0.39579]
[1729784886796,6.29055443,2528.8,2528.1,3.2078]
[1729784886999,3.47850443,2528.5,2528.3,0.39577]
[1729784887197,3.08275443,2528.4,2527.9,0.4252]
[1729784887400,3.08275443,2528.4,2528.1,0.3958]
[1729784887596,0.39578,2528.3,2528.1,0.3958]
[1729784887797,3.47852443,2528.4,2528.2,0.39579]
[1729784888100,3.47852443,2528.4,2527.9,3.633]
[1729784888101,3.08275443,2528.4,2527.9,3.633]
[1729784888299,0.39578,2528.3,2528.1,0.3958]
[1729784888602,3.08275443,2528.4,2528.3,0.39577]
[1729784889201,6.29055443,2528.5,2527.9,4.62258]
[1729784889507,6.29055443,2528.5,2528.4,0.39576]
[1729784889902,10.24575443,2528.5,2528.4,0.39576]
[1729784890098,7.03795443,2528.5,2528.4,0.39576]
[1729784890802,3.08275443,2528.5,2528.4,0.39576]
[1729784891198,3.08275443,2528.5,2528.0,0.98956]
[1729784891395,3.08275443,2528.5,2528.4,0.39576]
[1729784891600,6.29055443,2529.0,2528.3,0.98944]
[1729784891805,6.29055443,2529.0,2528.9,0.39568]
[1729784892209,3.2078,2529.0,2528.9,0.39568]
[1729784892402,43.88275443,2529.6,2529.2,0.39563]
[1729784892703,3.47830443,2529.8,2529.6,0.39557]
[1729784893011,3.47830443,2529.8,2529.2,3.2078]
[1729784893012,3.08275443,2529.8,2529.3,0.8415]
[1729784893205,3.47832443,2529.6,2529.3,0.8415]
[1729784893506,3.08275443,2529.6,2529.3,0.8415]
[1729784893704,3.08275443,2529.6,2529.5,0.39559]
[1729784893901,3.08275443,2529.6,2529.3,0.8415]
[1729784894112,0.39559,2529.5,2529.3,1.23711]
[1729784894297,0.39556,2529.7,2529.5,0.39558]
[1729784894497,44.27830443,2529.8,2529.6,0.39556]
[1729784894696,44.27830443,2529.8,2529.7,0.39556]
[1729784894697,40.8,2529.8,2529.7,0.39556]
[1729784895006,0.3955,2530.1,2529.9,0.39552]
[1729784895207,0.3955,2530.1,2529.7,3.2078]
[1729784895208,3.08275443,2530.2,2529.7,3.2078]
[1729784895405,3.08275443,2530.2,2529.9,0.39551]
[1729784895406,41.1955,2530.1,2529.9,0.39551]
[1729784895901,40.8,2530.1,2530.0,0.39551]
[1729784896309,3.2078,2530.3,2530.2,0.39548]
[1729784896608,3.2078,2530.3,2529.7,3.2078]
[1729784896609,6.29055443,2530.3,2529.7,3.2078]
[1729784896813,0.3955,2530.1,2529.9,0.39551]
[1729784897000,6.29055443,2530.3,2529.7,3.2078]
[1729784897203,0.39551,2530.0,2529.8,0.39553]
[1729784897403,0.39552,2529.9,2529.8,0.39553]
[1729784897599,6.29055443,2530.3,2529.8,0.39553]
[1729784897600,0.39552,2530.0,2529.8,0.39553]
[1729784897805,6.29055443,2530.3,2529.3,4.0493]
[1729784897806,3.08275443,2529.9,2529.3,4.0493]
[1729784898006,0.39557,2529.6,2529.3,4.0493]
[1729784898207,3.08275443,2529.9,2529.3,4.0493]
[1729784898208,3.08275443,2529.9,2529.5,0.39558]
[1729784898510,0.39554,2529.8,2529.5,0.39558]
[1729784898715,0.39557,2529.7,2529.5,0.39558]
[1729784899010,3.08275443,2529.9,2529.3,4.0493]
[1729784899212,3.08275443,2529.6,2529.3,0.8415]
[1729784899413,3.08275443,2529.6,2529.3,1.23711]
[1729784899813,3.47833443,2529.6,2529.4,0.3956]
[1729784900018,0.39557,2529.7,2529.5,0.39558]
[1729784900811,0.39557,2529.7,2529.3,1.2371]
[1729784900812,0.3956,2529.5,2529.3,1.2371]
[1729784901510,0.3956,2529.5,2529.4,0.3956]
[1729784901810,3.08275443,2529.8,2529.0,3.2078]
[1729784902011,0.39564,2529.2,2529.1,0.39564]
[1729784902418,0.39567,2529.0,2528.7,3.2078]
[1729784902711,4.07182443,2529.3,2528.8,0.39569]
[1729784903024,3.2078,2529.4,2528.5,0.8166]
[1729784903025,3.08275443,2528.9,2528.5,0.8166]
[1729784903210,3.08275443,2528.9,2528.7,0.3957]
[1729784903409,0.39568,2529.0,2528.8,0.39568]
[1729784903610,0.39568,2529.0,2528.5,0.8166]
[1729784903611,6.73115443,2529.3,2528.9,0.39568]
[1729784903805,0.39566,2529.1,2528.9,0.39567]
[1729784904007,0.39566,2529.1,2528.6,4.19711]